bitfinex/quotes_ETHUSD_20240823
["timestamp","ask_amount","ask_price","bid_price","bid_amount"]
[1724444041677,2.7714,2759.6,2759.5,3.62384]
[1724444042203,2.7714,2759.6,2759.4,3.62389]
[1724444042561,0.2524286,2760.0,2759.5,3.62384]
[1724444042902,2.7179,2759.9,2759.3,3.62399]
[1724444043907,2.7179,2759.9,2759.5,3.62384]
[1724444044112,0.2524286,2760.0,2759.7,3.62347]
[1724444044466,0.2524286,2760.0,2759.5,3.62373]
[1724444044660,0.2524286,2760.0,2759.6,3.986003]
[1724444044866,0.2524286,2760.0,2759.7,3.6235]
[1724444047269,0.2524286,2760.0,2759.9,3.62331]
[1724444047495,0.2524286,2760.0,2759.7,3.62353]
[1724444047697,0.2524286,2760.0,2759.3,5.8303]
[1724444047698,0.2524286,2760.0,2759.3,3.0]
[1724444047864,0.2524286,2760.0,2759.7,3.6235]
[1724444048079,0.2524286,2760.0,2759.7,3.62357]
[1724444048563,0.2524286,2760.0,2759.4,3.62388]
[1724444048768,0.2524286,2760.0,2759.2,3.62416]
[1724444048769,6.24882,2759.9,2759.2,3.62416]
[1724444049623,2.6255,2759.9,2759.2,3.62415]
[1724444049922,2.6255,2759.9,2759.4,3.62395]
[1724444050133,2.6255,2759.9,2759.2,0.362415]
[1724444050277,2.6255,2759.9,2759.6,3.62359]
[1724444050920,2.6255,2759.9,2759.4,3.62391]
[1724444051716,2.6255,2759.9,2759.5,3.62383]
[1724444051930,0.2524286,2760.0,2759.6,3.62371]
[1724444052296,0.2524286,2760.0,2759.6,7.24735]
[1724444052495,0.2524286,2760.0,2759.6,3.62364]
[1724444052720,0.2524286,2760.0,2759.4,7.24778]
[1724444052940,0.2524286,2760.0,2759.5,3.62383]
[1724444053697,2.829,2759.9,2759.3,3.62402]
[1724444053915,6.45233,2759.9,2759.1,7.24857]
[1724444054090,6.45233,2759.9,2759.2,3.62421]
[1724444054091,2.8421,2759.8,2759.2,3.62421]
[1724444054585,2.8421,2759.8,2759.3,3.62409]
[1724444056537,2.8421,2759.8,2759.3,3.62403]
[1724444056737,2.8421,2759.8,2759.4,3.62397]
[1724444057733,2.8421,2759.8,2759.4,7.24787]
[1724444057880,2.8421,2759.8,2759.4,3.6239]
[1724444058080,2.8421,2759.8,2759.6,3.62361]
[1724444058311,2.8421,2759.8,2759.6,7.24724]
[1724444058512,2.8421,2759.8,2759.6,3.62361]
[1724444059619,2.8421,2759.8,2759.7,3.62358]
[1724444059818,2.8421,2759.8,2758.8,4.77684647]
[1724444059819,2.8421,2759.8,2759.4,3.6239]
[1724444059988,3.15155286,2759.8,2759.2,3.62412]
[1724444060187,3.15155286,2759.8,2758.8,3.62467]
[1724444060188,2.8138,2759.6,2758.8,3.62467]
[1724444060388,2.8138,2759.6,2759.0,3.62449]
[1724444060651,2.8138,2759.6,2758.7,3.0]
[1724444060903,2.8138,2759.6,2759.0,3.62442]
[1724444061419,2.8138,2759.6,2758.9,3.62463]
[1724444061735,2.8138,2759.6,2758.9,3.62457]
[1724444062095,0.2524286,2760.0,2758.5,3.62506]
[1724444062096,2.6083,2759.2,2758.5,3.62506]
[1724444062400,2.6083,2759.2,2758.7,3.6248]
[1724444062935,2.6083,2759.2,2759.0,3.62449]
[1724444063143,2.6083,2759.2,2758.9,3.62459]
[1724444063305,2.8137,2759.8,2758.8,3.62473]
[1724444063638,2.8137,2759.8,2759.2,3.62417]
[1724444063791,2.8137,2759.8,2758.6,3.62498]
[1724444063792,6.4372,2759.8,2759.1,3.62436]
[1724444063990,2.8137,2759.8,2759.1,3.62436]
[1724444064187,2.8137,2759.8,2759.1,3.62423]
[1724444064391,2.8137,2759.8,2759.2,3.62419]
[1724444064948,2.7713,2759.7,2759.0,3.62438]
[1724444065105,2.7713,2759.7,2759.2,3.6242]
[1724444066131,2.7713,2759.7,2759.2,3.62416]
[1724444066517,2.7713,2759.7,2759.0,3.62438]
[1724444066730,2.8566,2759.5,2758.4,2.6594]
[1724444067024,2.8566,2759.5,2758.9,3.62462]
[1724444067232,2.8566,2759.5,2758.9,7.24917]
[1724444067519,2.8566,2759.5,2759.0,3.62443]
[1724444067738,2.8566,2759.5,2759.1,3.62434]
[1724444068046,2.8566,2759.5,2759.2,0.362434]
[1724444068243,2.8566,2759.5,2759.0,3.62445]
[1724444069086,2.8566,2759.5,2759.1,3.62435]
[1724444069263,2.8566,2759.5,2759.0,3.62445]
[1724444069264,2.8566,2759.5,2759.2,3.62412]
[1724444070368,2.8566,2759.5,2759.2,7.24828]
[1724444070538,2.8566,2759.5,2759.2,3.62412]
[1724444071683,2.8413,2759.8,2759.2,3.62412]
[1724444071878,2.8413,2759.8,2759.3,3.624]
[1724444074549,2.8413,2759.8,2759.1,3.62426]
[1724444075111,2.8413,2759.8,2759.2,3.62414]
[1724444076916,2.8413,2759.8,2758.9,3.62453]
[1724444076917,3.62375,2759.6,2758.9,3.62453]
[1724444077206,2.6033,2759.6,2758.9,3.62453]
[1724444077410,2.6033,2759.5,2758.9,3.62453]
[1724444077613,2.6033,2759.2,2758.5,3.62508]
[1724444077812,2.6033,2759.2,2758.6,3.62495]
[1724444077962,2.6033,2759.2,2758.7,3.62486]
[1724444078168,2.6033,2759.2,2758.7,7.24972]
[1724444078408,2.6033,2759.2,2758.8,3.62476]
[1724444079434,2.6033,2759.2,2758.9,3.62454]
[1724444080132,3.62462,2759.0,2758.3,3.62533]
[1724444080441,6.49594,2758.9,2758.1,3.62558]
[1724444080755,2.8713,2758.8,2758.1,3.62558]
[1724444080962,2.8713,2758.8,2758.1,7.25119]
[1724444081166,2.8713,2758.8,2758.2,3.62554]
[1724444081531,2.8713,2758.8,2758.1,3.62558]
[1724444082278,2.8713,2758.8,2758.1,7.25118]
[1724444082439,2.8713,2758.8,2758.2,3.62554]
[1724444082836,2.8713,2758.8,2758.1,3.62558]
[1724444083036,3.62516,2758.5,2757.9,3.62584]
[1724444083236,2.8183,2758.4,2757.9,3.62584]
[1724444083433,2.8183,2758.4,2757.8,3.62601]
[1724444083666,2.8183,2758.3,2757.7,3.62614]
[1724444083848,2.8183,2758.3,2757.7,7.25226]
[1724444084036,2.8183,2758.3,2757.2,10.83699647]
[1724444084268,2.8183,2758.3,2757.8,3.62601]
[1724444084469,2.8183,2758.3,2757.7,3.6261]
[1724444084992,2.8183,2758.3,2757.3,1.34626965]
[1724444085295,2.8183,2758.3,2758.0,3.62572]
[1724444086184,2.8183,2758.3,2757.8,3.626]
[1724444086354,2.8183,2758.3,2757.8,7.25197]
[1724444086963,2.8183,2758.3,2757.9,3.62587]
[1724444088387,2.8183,2758.3,2757.8,3.62597]
[1724444088991,2.8183,2758.3,2757.4,3.62654]
[1724444088992,2.8183,2758.3,2758.0,3.62579]
[1724444089191,2.8183,2758.3,2758.1,3.62559]
[1724444089759,2.8183,2758.3,2757.9,3.62589]
[1724444090159,2.8183,2758.3,2758.0,3.62576]
[1724444090559,2.8183,2758.3,2758.0,7.2515]
[1724444090776,2.8183,2758.3,2758.0,3.62573]
[1724444092105,2.8183,2758.3,2758.2,3.62555]
[1724444092307,2.8583,2758.6,2758.2,3.62555]
[1724444092817,2.8583,2758.6,2758.1,7.25134]
[1724444093112,2.8583,2758.6,2758.1,3.62567]
[1724444093278,2.8583,2758.6,2758.1,3.62561]
[1724444093618,2.8583,2758.6,2758.4,3.62525]
[1724444093913,2.8583,2758.6,2758.3,3.62538]
[1724444094737,2.8583,2758.6,2757.9,3.62585]
[1724444095008,3.14413,2758.6,2758.0,3.62578]
[1724444095571,2.7507,2758.5,2758.0,3.62578]
[1724444095803,2.7507,2758.5,2757.9,7.25169]
[1724444096178,2.7507,2758.5,2758.0,3.62581]
[1724444097206,2.7507,2758.5,2758.1,3.6256]
[1724444097623,2.7507,2758.5,2758.1,7.25121]
[1724444097911,2.7507,2758.5,2758.1,3.6256]
[1724444101654,2.7507,2758.5,2758.4,3.62529]
[1724444101987,3.0,2759.0,2758.5,3.62514]
[1724444101988,2.7438,2759.0,2758.5,3.62514]
[1724444102913,2.7438,2759.0,2758.7,3.62488]
[1724444103114,2.7438,2759.0,2758.8,3.62472]
[1724444103318,2.7438,2759.0,2758.6,3.62491]
[1724444103693,2.7438,2759.0,2758.7,3.62489]
[1724444103936,2.7438,2759.4,2758.8,3.62475]
[1724444104234,2.7438,2759.4,2758.8,3.62466]
[1724444104386,2.7438,2759.4,2759.1,3.62427]
[1724444104586,2.7438,2759.4,2759.1,7.24854]
[1724444104784,2.7438,2759.4,2759.2,3.62421]
[1724444106422,2.7438,2759.4,2759.1,3.62427]
[1724444107135,2.7438,2759.4,2759.1,7.24853]
[1724444107286,2.7438,2759.4,2759.2,3.6242]
[1724444107484,2.7391,2759.7,2759.3,3.6241]
[1724444107807,0.2524286,2760.0,2759.2,0.724846]
[1724444107808,2.9915286,2760.0,2759.7,3.62357]
[1724444108008,0.2524286,2760.0,2759.9,3.62331]
[1724444108186,0.2524286,2760.0,2759.9,7.24662]
[1724444109386,0.2524286,2760.0,2759.9,8.243362]
[1724444109584,0.2524286,2760.0,2759.9,4.620052]
[1724444109788,0.2524286,2760.0,2759.7,3.6235]
[1724444110223,0.2524286,2760.0,2759.9,3.62331]
[1724444110435,0.2524286,2760.0,2759.9,7.24662]
[1724444112715,0.2524286,2760.0,2759.9,3.62331]
[1724444113044,0.2524286,2760.0,2759.4,6.46763]
[1724444113045,0.2524286,2760.0,2759.4,3.62395]
[1724444113197,0.2524286,2760.0,2759.5,3.62383]
[1724444113612,0.2524286,2760.0,2759.6,3.62361]
[1724444113908,0.2524286,2760.0,2759.9,3.62331]
[1724444117195,0.2524286,2760.0,2759.8,3.62344]
[1724444117714,0.2524286,2760.0,2759.8,3.62337]
[1724444118044,0.2524286,2760.0,2759.9,3.62331]
[1724444118413,0.2524286,2760.0,2759.9,7.971288]
[1724444119411,0.2524286,2760.0,2759.9,7.24662]
[1724444120810,0.2524286,2760.0,2759.9,10.86993]
[1724444121026,0.2524286,2760.0,2759.9,10.24662]
[1724444122314,0.2524286,2760.0,2759.9,7.24662]
[1724444122739,0.2524286,2760.0,2759.9,3.62331]
[1724444123163,0.2524286,2760.0,2759.7,3.62356]
[1724444123315,0.2524286,2760.0,2759.6,3.62362]
[1724444123316,0.55179146,2760.0,2759.6,3.62362]
[1724444123769,0.55179146,2760.0,2759.5,3.69630604]
[1724444123770,0.2524286,2760.0,2759.5,3.69630604]
[1724444124065,0.2524286,2760.0,2759.9,7.24662]
[1724444125289,0.2524286,2760.0,2759.9,13.68973]
[1724444125437,0.2524286,2760.0,2759.9,20.31304]
[1724444125781,0.2524286,2760.0,2759.9,20.86304]
[1724444125936,0.2524286,2760.0,2759.9,23.37036165]
[1724444126134,0.02465737,2760.0,2759.9,23.37036165]
[1724444126597,0.11256019,2761.4,2761.1,3.62165]
[1724444126885,0.11256019,2761.4,2761.3,13.68944]
[1724444127185,5.62626262,2761.5,2761.3,20.31092]
[1724444127481,0.00193938,2762.3,2762.2,7.2406]
[1724444127679,0.00193938,2762.3,2762.2,10.8609]
[1724444127986,0.1339736,2762.7,2762.6,10.85931]
[1724444128289,0.1339736,2762.7,2762.6,20.81848647]
[1724444128471,3.3e-06,2762.8,2762.6,11.87927254]
[1724444128682,5.67676767,2764.5,2763.7,7.23666]
[1724444129068,5.67676767,2764.5,2764.4,10.85226]
[1724444129292,0.00322178,2764.6,2764.5,10.09308]
[1724444129293,9.45e-06,2764.6,2764.5,10.09308]
[1724444129454,0.42895287,2765.9,2764.7,10.85106]
[1724444129655,0.42895287,2765.9,2765.6,37.4960264]
[1724444129866,0.42895287,2765.9,2765.6,41.1118764]
[1724444129867,1.0,2765.7,2765.6,41.1118764]
[1724444130065,1.0,2765.7,2765.0,3.61657]
[1724444130298,1.0,2765.7,2765.3,3.61621]
[1724444130479,1.0,2765.7,2765.6,3.61585]
[1724444130850,1.0,2765.7,2765.6,4.889032]
[1724444131058,1.0,2765.7,2765.1,8.58027254]
[1724444131518,1.0,2765.7,2765.6,13.50335]
[1724444131808,0.42895287,2765.9,2765.8,7.23118]
[1724444131957,0.42895287,2765.9,2765.5,3.61]
[1724444132315,0.42895287,2765.9,2764.9,2.6951]
[1724444132316,0.42895287,2765.9,2765.2,3.61636]
[1724444132615,0.42895287,2765.9,2765.4,3.61599]
[1724444132759,0.42895287,2765.9,2765.3,3.0]
[1724444132955,0.42895287,2765.9,2765.0,5.58027254]
[1724444133160,0.42895287,2765.9,2765.7,3.61569]
[1724444133401,0.42895287,2765.9,2765.8,3.61559]
[1724444133980,0.42895287,2765.9,2765.8,7.954308]
[1724444134291,0.00449909,2766.9,2765.8,7.954308]
[1724444134292,0.00449909,2766.9,2766.4,3.61479]
[1724444134455,0.00449909,2766.9,2766.4,3.61473]
[1724444134661,0.00449909,2766.9,2766.3,3.61491]
[1724444134898,0.00449909,2766.9,2766.1,3.61513]
[1724444135160,0.00449909,2766.9,2766.5,3.61467]
[1724444135366,0.00449909,2766.9,2766.2,3.0]
[1724444135605,0.00449909,2766.9,2765.8,9.30340054]
[1724444135918,0.00449909,2766.9,2766.2,9.19529254]
[1724444136222,0.00449909,2766.9,2765.9,0.55]
[1724444136366,0.00449909,2766.9,2766.0,0.355]
[1724444136712,0.00449909,2766.9,2765.9,3.55]
[1724444136713,0.00449909,2766.9,2766.3,3.61481]
[1724444137019,0.00449909,2766.9,2765.9,7.16533]
[1724444137020,3.61874909,2766.9,2765.9,7.16533]
[1724444137188,0.00449909,2766.9,2765.9,3.0]
[1724444137402,0.00449909,2766.9,2765.4,3.61]
[1724444137403,3.61483,2766.4,2765.4,3.61]
[1724444137572,3.61555,2765.9,2765.0,3.61659]
[1724444137766,3.977145,2765.8,2764.9,5.58027254]
[1724444138029,3.977145,2765.8,2764.5,9.19755254]
[1724444138174,3.61629,2765.3,2764.4,3.61741]
[1724444138375,3.61629,2765.3,2763.0,2.8136]
[1724444138376,2.694,2765.3,2763.6,3.61843]
[1724444138727,3.6173,2764.5,2763.5,3.61853]
[1724444139022,0.36173,2764.4,2763.4,5.58027254]
[1724444139315,3.61716,2764.6,2763.5,3.61853]
[1724444139514,3.61716,2764.6,2763.7,3.6182]
[1724444139722,3.0,2765.2,2763.4,5.58027254]
[1724444139937,3.61664,2765.0,2763.8,3.61818]
[1724444140232,3.61781,2764.1,2763.1,3.61905]
[1724444140436,0.361781,2764.0,2763.1,3.6191]
[1724444140579,6.46055,2764.3,2763.4,3.6187]
[1724444140927,3.61782,2764.1,2762.9,3.61938]
[1724444141078,2.843,2764.3,2762.6,5.58027254]
[1724444141079,3.0,2764.2,2762.6,5.58027254]
[1724444141277,3.61808,2763.9,2763.0,3.61924]
[1724444141474,3.61822,2763.8,2762.4,3.61991]
[1724444141718,6.48306,2763.4,2762.2,3.62028]
[1724444141933,6.48306,2763.4,2762.1,3.62]
[1724444141934,2.8643,2763.4,2762.0,3.62053]
[1724444142075,3.61912,2763.1,2762.0,3.62053]
[1724444142405,3.61926,2763.0,2761.9,3.62068]
[1724444142610,3.61939,2762.9,2761.9,3.62068]
[1724444142917,3.61939,2762.9,2762.0,3.62055]
[1724444142918,0.661939,2762.9,2762.0,3.62055]
[1724444143074,0.661939,2762.9,2761.9,3.62068]
[1724444143415,0.661939,2762.9,2762.0,3.62056]
[1724444143619,2.8091,2762.8,2761.6,0.44855387]
[1724444143855,3.0,2762.7,2760.8,0.44855387]
[1724444144165,3.62017,2762.4,2761.3,3.62148]
[1724444144322,3.62117,2761.6,2760.8,0.37723265]
[1724444144521,3.62117,2761.6,2759.7,5.64077566]
[1724444144522,3.62058,2762.0,2760.6,3.62238]
[1724444144707,3.62058,2762.0,2759.9,3.6359376]
[1724444144708,3.62097,2761.7,2760.7,0.362238]
[1724444145202,3.362058,2761.9,2760.9,3.62198]
[1724444145406,3.362058,2761.9,2760.7,0.362238]
[1724444145607,2.782,2762.3,2761.2,3.62157]
[1724444145849,2.782,2762.3,2760.9,0.07241633]
[1724444146171,2.6655,2762.9,2762.0,3.62052]
[1724444146463,2.6655,2762.9,2761.2,4.03512728]
[1724444146464,3.61981,2762.6,2761.6,3.62098]
[1724444146750,3.62021,2762.3,2761.3,3.62142]
[1724444146951,0.362021,2762.2,2761.3,3.62142]
[1724444147108,3.982341,2762.2,2761.3,3.62142]
[1724444147490,0.362021,2762.2,2760.9,3.62197]
[1724444147625,2.621,2762.1,2761.0,6.62185]
[1724444147957,3.62058,2762.0,2760.9,3.62196]
[1724444148154,1.0223901,2762.0,2761.3,3.62146]
[1724444148339,2.621,2762.1,2761.4,3.62131]
[1724444148540,2.621,2762.6,2761.6,3.62106]
[1724444148859,2.621,2762.6,2762.2,3.62028]
[1724444149153,2.621,2762.6,2761.2,9.26230566]
[1724444149154,2.621,2762.6,2762.0,3.69292416]
[1724444149355,2.621,2762.6,2762.0,3.62052]
[1724444149531,2.621,2763.1,2762.2,3.62018]
[1724444149727,2.621,2763.1,2762.1,0.362052]
[1724444149930,3.61949,2762.9,2761.6,3.0]
[1724444150127,2.621,2763.1,2762.3,3.62016]
[1724444150429,2.621,2763.1,2762.2,3.62028]
[1724444150635,6.24012,2763.1,2762.2,3.62028]
[1724444151012,3.61927,2763.0,2762.1,3.62043]
[1724444151280,3.61927,2763.0,2762.1,3.982473]
[1724444151505,2.621,2763.1,2761.7,3.62092]
[1724444151788,2.621,2763.1,2761.6,3.62102]
[1724444151789,6.24013,2763.1,2761.6,3.62102]
[1724444151936,0.7,2764.6,2761.6,3.62102]
[1724444151937,3.4357,2763.6,2762.7,3.61955]
[1724444152298,3.0,2763.5,2762.9,3.61938]
[1724444152581,3.4357,2763.6,2762.9,3.61937]
[1724444152750,3.4357,2763.6,2762.9,4.343269]
[1724444152950,3.4357,2763.6,2762.5,3.61987]
[1724444153265,3.61873,2763.4,2762.5,3.61987]
[1724444153592,7.0542,2763.6,2762.6,3.61976]
[1724444153776,7.0542,2763.6,2762.7,3.61962]
[1724444154636,3.4357,2763.6,2762.9,3.61935]
[1724444155056,3.61873,2763.4,2762.9,0.723895]
[1724444155222,3.61873,2763.4,2762.5,3.61985]
[1724444155365,7.05417,2763.6,2762.5,3.61985]
[1724444155560,3.6186,2763.5,2762.5,3.61983]
[1724444155820,3.61882,2763.4,2762.4,3.61992]
[1724444156004,3.61882,2763.4,2762.5,0.724003]
[1724444156182,3.61886,2763.3,2762.5,4.343893]
[1724444156511,3.619,2763.2,2762.5,0.724003]
[1724444156881,3.61912,2763.1,2762.5,0.724003]
[1724444157419,3.61912,2763.1,2762.2,3.62029]
[1724444157572,3.61912,2763.1,2762.2,3.62025]
[1724444157769,3.61912,2763.1,2762.1,3.62038]
[1724444158081,3.61866,2763.5,2762.5,3.61979]
[1724444158425,3.61891,2763.3,2762.3,3.62013]
[1724444158636,3.61922,2763.1,2762.3,3.62013]
[1724444158912,3.61922,2763.1,2762.1,3.62041]
[1724444158913,3.61938,2762.9,2762.1,3.62033]
[1724444159463,3.61975,2762.7,2761.9,3.62063]
[1724444159917,3.61975,2762.7,2761.9,3.62061]
[1724444160116,3.61992,2762.5,2761.7,3.6209]
[1724444160425,3.61975,2762.7,2761.9,3.62061]
[1724444160869,3.238,2762.8,2761.3,3.62147]
[1724444160870,3.62026,2762.3,2761.3,3.62147]
[1724444161065,6.61974,2762.7,2760.9,4.087509]
[1724444161267,6.85755,2762.8,2761.3,3.62146]
[1724444161515,6.85755,2762.8,2761.4,3.983436]
[1724444161715,6.85755,2762.8,2761.5,3.62121]
[1724444161923,6.85755,2762.8,2762.0,3.62048]
[1724444162070,3.238,2762.8,2761.8,3.6208]
[1724444162274,0.661891,2763.3,2761.4,0.362146]
[1724444162275,3.4993,2763.3,2762.4,3.61996]
[1724444162479,3.4993,2763.3,2762.6,3.61968]
[1724444162799,3.4993,2763.3,2762.7,3.61955]
[1724444163009,3.4993,2763.3,2762.8,3.61942]
[1724444163210,7.11752,2763.8,2762.9,3.61929]
[1724444163370,3.4993,2763.8,2763.0,3.61917]
[1724444163568,3.4993,2763.8,2763.1,3.61908]
[1724444164017,3.4993,2763.8,2762.8,3.61947]
[1724444164219,3.61848,2763.6,2762.8,3.61947]
[1724444164388,7.46748,2763.8,2762.9,3.61937]
[1724444164585,3.84923,2763.8,2763.1,3.61911]
[1724444164918,3.84923,2763.8,2762.9,3.61938]
[1724444164919,7.46744,2763.8,2762.9,3.61938]
[1724444165325,11.08576,2763.8,2762.9,3.61938]
[1724444165523,7.46744,2763.8,2762.9,3.61938]
[1724444165820,7.11751,2763.8,2763.0,3.61925]
[1724444166329,7.11751,2763.8,2762.9,4.343278]
[1724444166616,7.23706,2763.6,2762.9,0.723898]
[1724444166773,2.86356074,2763.6,2762.9,0.723898]
[1724444167202,7.11756,2763.8,2762.9,4.343198]
[1724444167401,10.73588,2763.8,2763.0,0.4343198]
[1724444167584,3.61848,2763.6,2763.0,0.4343198]
[1724444168293,7.11756,2763.8,2763.0,0.4343198]
[1724444168482,3.61853,2763.6,2763.0,0.4343198]
[1724444168810,3.61853,2763.6,2762.9,0.723898]
[1724444168992,3.61862,2763.5,2762.9,0.723898]
[1724444169194,3.61933,2763.0,2762.1,3.62037]
[1724444169504,7.23899,2762.9,2762.0,3.62055]
[1724444170095,3.61953,2762.8,2762.0,3.62055]
[1724444170259,3.61948,2762.9,2762.1,3.62039]
[1724444170715,3.3743,2763.6,2761.9,3.62058]
[1724444170716,3.61968,2762.7,2761.9,3.62058]
[1724444170928,0.69243,2763.5,2762.0,0.362058]
[1724444171100,3.61947,2762.9,2761.9,3.62065]
[1724444171461,3.62013,2762.4,2761.7,0.37731289]
[1724444171619,3.61999,2762.5,2761.5,3.62113]
[1724444171620,3.62021,2762.3,2761.5,3.62113]
[1724444171804,3.62043,2762.2,2761.3,3.62138]
[1724444172024,3.62036,2762.2,2761.3,3.62146]
[1724444172360,3.61998,2762.5,2761.7,3.62086]
[1724444172517,7.23999,2762.5,2761.7,3.62086]
[1724444172849,3.61987,2762.6,2761.7,3.62086]
[1724444173346,3.61987,2762.6,2761.8,3.62081]
[1724444173551,3.61992,2762.5,2761.7,3.62086]
[1724444173859,3.61992,2762.5,2761.8,0.362086]
[1724444174038,3.3743,2762.7,2761.9,3.62065]
[1724444174358,7.16297,2763.2,2762.4,3.61993]
[1724444174718,7.16297,2763.2,2762.1,6.418]
[1724444174719,3.61878,2763.4,2762.7,3.61962]
[1724444175081,3.61878,2763.4,2762.8,0.361962]
[1724444175266,3.5326,2763.7,2763.0,3.61913]
[1724444175922,3.61655,2765.1,2763.1,0.55]
[1724444175923,7.15029,2764.2,2763.1,0.55]
[1724444176176,7.15029,2764.2,2763.4,3.61864]
[1724444176327,7.15029,2764.2,2763.5,0.07236227]
[1724444176647,7.15029,2764.2,2763.2,3.61888]
[1724444176852,3.61907,2763.2,2762.2,7.02307]
[1724444177065,3.5326,2763.3,2762.3,3.0]
[1724444177358,7.23706,2763.6,2762.8,3.61942]
[1724444177600,3.61851,2763.6,2762.5,3.61987]
[1724444177763,3.61851,2763.6,2762.8,3.61951]
[1724444178067,3.61924,2763.1,2762.3,3.0]
[1724444178716,3.61877,2763.4,2762.3,3.0]
[1724444179149,0.715111,2763.6,2762.4,3.61993]
[1724444179451,3.6192,2763.1,2762.3,6.62016]
[1724444179620,3.61925,2763.0,2762.3,3.0]
[1724444179817,3.61925,2763.0,2762.3,4.002303]
[1724444180253,3.5326,2763.1,2761.8,7.385606]
[1724444180454,3.5326,2763.1,2761.8,0.362086]
[1724444180670,3.61954,2762.8,2762.0,3.62047]
[1724444181155,7.23916,2762.8,2762.0,3.62047]
[1724444181313,3.61954,2762.8,2762.0,3.62047]
[1724444181651,3.61954,2762.8,2762.1,3.0]
[1724444181852,3.61954,2762.8,2761.9,6.62059]
[1724444182038,3.61954,2762.8,2761.9,7.644725]
[1724444182354,3.61931,2763.0,2762.2,3.62017]
[1724444182539,3.61931,2763.0,2762.3,3.62011]
[1724444183309,4.333581,2763.6,2762.3,3.62011]
[1724444183310,3.61797,2764.0,2762.3,3.4028]
[1724444183513,3.5326,2764.2,2763.3,3.61876]
[1724444183514,7.15034,2764.2,2763.3,3.61876]
[1724444183744,3.5326,2764.2,2763.7,3.61825]
[1724444183958,3.76724,2764.6,2763.8,3.69043518]
[1724444184159,3.76724,2764.6,2764.0,3.61789]
[1724444184160,0.15,2764.6,2764.0,3.61789]
[1724444184457,0.15,2764.6,2763.9,3.61807]
[1724444184458,3.61717,2764.6,2763.9,3.61807]
[1724444184624,3.61717,2764.6,2763.9,3.69042255]
[1724444184828,3.6826,2764.7,2764.0,3.61794]
[1724444185264,3.61722,2764.6,2763.7,3.0]
[1724444185413,3.61764,2764.3,2763.7,3.0]
[1724444185610,3.61764,2764.3,2763.5,6.61855]
[1724444185855,3.61764,2764.3,2763.4,3.6187]
[1724444185856,7.23501,2764.4,2763.4,3.61863]
[1724444186153,3.61749,2764.4,2763.5,0.361863]
[1724444186355,3.61775,2764.2,2763.2,3.0]
[1724444186559,3.61775,2764.2,2763.1,3.0]
[1724444186857,3.61835,2763.7,2762.8,3.61943]
[1724444187009,7.1507,2763.9,2763.0,3.61912]
[1724444187415,3.61842,2763.7,2762.8,3.6194]
[1724444187672,3.61854,2763.6,2762.8,3.6194]
[1724444187830,3.6186,2763.5,2762.6,3.61971]
[1724444188154,3.6186,2763.5,2762.5,3.4028]
[1724444188155,3.6184,2763.7,2763.0,3.6192]
[1724444188312,4.24767,2763.9,2762.6,3.61972]
[1724444188508,3.61876,2763.4,2762.6,3.61972]
[1724444188759,7.23681,2763.7,2762.5,3.4028]
[1724444188967,7.23682,2763.7,2762.9,3.61935]
[1724444189148,3.61872,2763.5,2762.6,6.61969]
[1724444189351,3.61849,2763.6,2762.8,3.61943]
[1724444189643,3.61873,2763.4,2762.6,6.61972]
[1724444189843,3.61873,2763.4,2762.7,1.002252]
[1724444190060,3.61869,2763.5,2762.7,4.621872]
[1724444191721,3.61931,2763.0,2762.2,3.62017]
[1724444192421,3.61954,2762.8,2762.0,3.62045]
[1724444192647,3.61954,2762.8,2762.1,3.6204]
[1724444192867,3.61931,2763.0,2762.3,3.62012]
[1724444193067,3.61961,2762.8,2762.0,3.62048]
[1724444193278,3.61961,2762.8,2762.1,3.662048]
[1724444193499,0.15,2763.9,2763.4,3.61872]
[1724444193701,0.15,2763.9,2762.4,3.97841165]
[1724444193702,3.61818,2763.9,2763.0,3.0]
[1724444193858,3.61864,2763.5,2762.7,3.61964]
[1724444194054,3.2852,2763.4,2762.4,3.0]
[1724444194271,3.61907,2763.2,2762.4,3.61996]
[1724444194448,3.61907,2763.2,2762.5,3.0]
[1724444194641,3.61912,2763.1,2762.5,3.0]
[1724444194870,3.61927,2763.0,2762.3,3.62007]
[1724444195073,3.61927,2763.0,2762.1,7.282388]
[1724444195074,3.61938,2762.9,2762.1,7.282388]
[1724444195256,3.61938,2762.9,2762.2,3.0]
[1724444195456,3.61938,2762.9,2761.9,3.62068]
[1724444195457,3.61972,2762.7,2761.9,3.62068]
[1724444195663,0.723865,2762.9,2761.6,0.37858793]
[1724444195664,3.62019,2762.3,2761.6,0.37858793]
[1724444195841,3.3805,2762.6,2761.6,0.37858793]
[1724444196043,7.24022,2762.4,2761.5,3.62117]
[1724444196239,3.62007,2762.4,2761.4,0.362146]
[1724444196504,3.62038,2762.2,2761.3,3.62139]
[1724444196681,3.62007,2762.4,2761.5,3.6212]
[1724444196893,3.3805,2762.6,2762.0,3.62052]
[1724444197257,0.690384,2763.3,2761.8,6.94866]
[1724444197258,3.3117,2763.0,2761.8,6.94866]
[1724444197456,4.002084,2763.3,2762.3,3.62014]
[1724444197644,3.61901,2763.2,2762.1,7.24069]
[1724444197856,3.61901,2763.2,2761.9,3.0]
[1724444197857,3.3117,2763.3,2762.7,3.61953]
[1724444198060,0.15,2763.7,2762.3,3.62011]
[1724444198259,0.15,2763.8,2763.4,3.61866]
[1724444198493,3.61843,2763.7,2762.8,3.61942]
[1724444198640,0.361843,2763.6,2762.8,3.61942]